Cogmind - Beta 15 @@@ ROGUE MODE // 2025.05.18 @ 15:13:06 Player: 0_0 Result: Destroyed by D-53 Grenadier with Mini Grenade Launcher Performance ------------- Evolutions (0) 0 Regions Visited (2) 400 Robots Destroyed (8) 40 Value Destroyed (43) 43 Prototype IDs (0) 0 Alien Tech Used (0) 0 Bonus (0) 0 TOTAL SCORE: 483 Bonus ------- None Cogmind --------- Core Integrity 0/250 Matter 252/300 Energy 125/125 System Corruption 0% Temperature Cool (0) Movement Rolling (100) Location -10/Mines Parts ------- > --- POWER (1) -------- Light Ion Engine > --- PROPULSION (2) --- Compact Wheel > --- UTILITY (2) ------ Seismic Detector > --- WEAPON (2) ------- (None) > --- INVENTORY (5) ---- Visual Processing Unit ECM Suite Tractor Beam Assault Rifle Light Assault Rifle Peak State ------------ > --- POWER ------------ Light Ion Engine > --- PROPULSION ------- Compact Wheel Compact Wheel > --- UTILITY ---------- Improved Terrain Scanner Seismic Detector > --- WEAPON ----------- Rocket Launcher Rocket Launcher > --- INVENTORY -------- Visual Processing Unit ECM Suite Tractor Beam Assault Rifle Light Assault Rifle [Rating: 11] Favorites ----------- Power Light Ion Engine Engine Light Ion Engine Propulsion Compact Wheel Wheel Compact Wheel Utility Improved Terrain Scanner Device Improved Terrain Scanner Storage Small Storage Unit Weapon Light Assault Rifle Ballistic Gun Light Assault Rifle Launcher Rocket Launcher Build | -11 -10 -10 ------- Run | Yrd Mat Min Slots Evolved . | . . . Power . | . . . Propulsion . | . . . Utility . | . . . Weapon . | . . . Parts Attached 10 | 8 . 2 Power 1 | 1 . . Engine 1 | 1 . . Core . | . . . Reactor . | . . . Propulsion 2 | 2 . . Treads . | . . . Leg . | . . . Wheel 2 | 2 . . Hover . | . . . Flight . | . . . Utility 3 | 3 . . Device 2 | 2 . . Storage 1 | 1 . . Processor . | . . . Hackware . | . . . Protection . | . . . Artifact . | . . . Weapon 4 | 2 . 2 Energy Gun . | . . . Energy Cannon . | . . . Ballistic Gun 2 | 2 . . Ballistic Cannon . | . . . Launcher 2 | . . 2 Special Weapon . | . . . Impact Weapon . | . . . Slashing Weapon . | . . . Piercing Weapon . | . . . Special Melee Weapon . | . . . Unidentified Prototypes . | . . . Parts Lost 4 | . . 4 Power . | . . . Propulsion 1 | . . 1 Utility 1 | . . 1 Weapon 2 | . . 2 Highest Loss Streak 3 | . . 3 To Critical Strikes . | . . . Average Backups 3 | . 4 5 Power . | . . . Propulsion . | . . . Utility 2 | . 3 3 Weapon . | . 1 2 Tool/Special . | . . . Unused Backups 5 | . 2 3 Power . | . . . Propulsion . | . . . Utility 5 | . 2 3 Weapon . | . . . Tool/Special . | . . . Average Slot Usage (%) 98 | . 100 90 Engine 14 | . 14 14 Wheel 26 | . 28 18 Device 28 | . 28 28 Ballistic Gun 25 | . 28 7 Launcher 2 | . . 21 Peak Build Rating 11 | 9 10 11 Average Rating 8 | 5 9 9 On Entrance 6 | . 9 9 Naked Turns . | . . . Heaviest Build 13 | 12 8 13 Greatest Support 32 | 32 32 32 Greatest Overweight (x) 1 | 1 . . Average Overweight (x) . | . . . Largest Inventory Capacity 8 | 8 5 5 Average Capacity 5 | 7 5 5 Most Carried 5 | 4 5 5 Average Carried 3 | . 4 5 Final Capacity 5 | 5 5 5 Final Carried 5 | 4 5 5 Class Distribution -------------------- 100% | Mutant Dominant Class ---------------- Mutant | -10/Materials Mutant | -10/Mines Resources | -11 -10 -10 ----------- Run | Yrd Mat Min Matter Collected 384 | 384 . . Remotely . | . . . Salvage Created 231 | 221 . 10 Parts 19 | 19 . . Haulers Intercepted . | . . . Recyclers Shooed . | . . . Parts Field Recycled . | . . . Retrieved Matter . | . . . Parts Self-Destructed . | . . . Prevented . | . . . Kills | -11 -10 -10 ------- Run | Yrd Mat Min Combat Hostiles Destroyed 1 | . . 1 Guns 1 | . . 1 Classes Destroyed 4 | 3 . 1 Worker 2 | 2 . . Tunneler 5 | 5 . . Recycler 1 | 1 . . Assembled 1 | . . 1 Best Kill Streak 3 | 3 . 1 Combat Bots Only 1 | . . 1 Max Kills in Single Turn 1 | 1 . 1 Gunslinging . | . . . Exploded . | . . . Melee . | . . . Uniques/NPCs Destroyed . | . . . Combat | -11 -10 -10 -------- Run | Yrd Mat Min Hostile Shots Fired 8 | . . 8 Missed . | . . . Hits 8 | . . 8 Projectile 8 | . . 8 AOE 9 | . . 9 Damage Taken 493 | . 21 472 Core 252 | . . 252 Absorbed by Shields . | . . . Core Remaining (%) 100 | 100 . . Volleys Fired 29 | 26 . 3 Largest 2 | 2 . 2 Hottest 66 | 40 . 66 Shots Fired 58 | 52 . 6 Gun 54 | 52 . 2 Cannon . | . . . Launcher 4 | . . 4 Special . | . . . Kinetic 54 | 52 . 2 Thermal . | . . . Explosive 4 | . . 4 Electromagnetic . | . . . Robot Hit Streak 4 | 4 . 4 Robot Miss Streak 2 | 2 . . Penetration Max . | . . . Secondary Targets . | . . . Shots Hit Robots 33 | 31 . 2 Core Hits 13 | 11 . 2 Critical Kills . | . . . Critical Parts Destroyed . | . . . Critical Strikes . | . . . Melee Attacks . | . . . Impact . | . . . Slashing . | . . . Piercing . | . . . Sneak Attacks . | . . . Combat Hostiles . | . . . Follow-up Attacks . | . . . Damage Inflicted 338 | 318 . 20 Guns 338 | 318 . 20 Cannons . | . . . Explosions . | . . . Melee . | . . . Ramming . | . . . Kinetic 338 | 318 . 20 Thermal . | . . . Explosive . | . . . Electromagnetic . | . . . Impact . | . . . Slashing . | . . . Piercing . | . . . Highest Corruption . | . . . Average Corruption . | . . . Corruption Purged . | . . . Corruption Blocked . | . . . Overload Shots . | . . . Overflow Damage 7 | . . 7 Projectiles . | . . . Explosions 7 | . . 7 Melee . | . . . Knockbacks . | . . . Impact . | . . . Kinetic . | . . . Secondary . | . . . Self-Inflicted Damage 127 | . . 127 Shots 3 | . . 3 Rammed . | . . . Targets Rammed . | . . . Kicked . | . . . Crushed . | . . . Highest Temperature 6 | . . 6 Average Temperature 4 | . . 4 Received Heat Transfer 12 | . . 12 Siege Activations . | . . . Martial Activations . | . . . Shielding Activations . | . . . Robots Disrupted . | . . . Combat Hostiles . | . . . Robots Corrupted . | . . . Combat Hostiles . | . . . Parts Fried . | . . . Impact Corruptions . | . . . Robots Melted . | . . . Combat Hostiles . | . . . Parts Melted . | . . . Heat Transferred . | . . . Parts Sabotaged . | . . . Parts Stolen . | . . . Parts Stripped . | . . . Power Chain Reactions . | . . . Alert | -11 -10 -10 ------- Run | Yrd Mat Min Maximum Alert Level . | . . . Low Security (%) 100 | 100 100 100 Level 1 . | . . . Level 2 . | . . . Level 3 . | . . . Level 4 . | . . . Level 5 . | . . . High Security . | . . . Max Security . | . . . Peak Influence 15 | 10 3 15 Initial . | . . . Average 1 | 2 . 5 Influence Increases 73 | 40 3 30 Destroy 0b10 Robot/NC 40 | 40 . . Successful Hack 3 | . 3 . Destroy Structure 15 | . . 15 Lose Combat Pursuer 15 | . . 15 Influence Decreases 73 | 40 3 30 Time Decay 59 | 40 3 16 Lost Part 14 | . . 14 Squads Dispatched 1 | . 1 . Investigation 1 | . 1 . Extermination . | . . . Reinforcement . | . . . Assault . | . . . Garrison . | . . . Intercept . | . . . Searches Triggered . | . . . Construction Impeded . | . . . Haulers Reinforced . | . . . Active Scanning Responses . | . . . Cargo Convoy Interrupts . | . . . Stealth | -11 -10 -10 --------- Run | Yrd Mat Min Distress Signals . | . . . Communications Jammed . | . . . Distress Signals . | . . . Times Spotted 9 | . 4 5 Peak Tracking Total 3 | . 2 3 Tactical Retreats 1 | . . 1 Traps | -11 -10 -10 ------- Run | Yrd Mat Min Traps Triggered 2 | . 2 . Indirectly . | . . . Trap Hack Attempts . | . . . Triggered . | . . . Disarmed . | . . . Reprogrammed . | . . . Reused . | . . . Traps Extracted . | . . . Installed . | . . . Triggered . | . . . Machines | -11 -10 -10 ---------- Run | Yrd Mat Min Machines Disabled . | . . . Max in Single Turn . | . . . Machines Repaired . | . . . Machines Dismantled . | . . . Machines Sabotaged . | . . . Overloaded Fab Kills . | . . . Hacking | -11 -10 -10 --------- Run | Yrd Mat Min Machines Accessed 4 | . 4 . Terminals 3 | . 3 . Fabricators . | . . . Repair Stations . | . . . Recycling Units 1 | . 1 . Scanalyzers . | . . . Garrison Access . | . . . Total Hacks 8 | . 8 . Successful 2 | . 2 . Failed 6 | . 6 . Catastrophic 1 | . 1 . Database Lockouts . | . . . Manual 8 | . 8 . Terminals 7 | . 7 . Fabricators . | . . . Repair Stations . | . . . Recycling Units 1 | . 1 . Scanalyzers . | . . . Garrison Access . | . . . Terminal Hacks 1 | . 1 . Branch Access Points 1 | . 1 . Fabricator Hacks . | . . . Repair Station Hacks . | . . . Recycling Unit Hacks . | . . . Scanalyzer . | . . . Garrison Access Hacks . | . . . Unauthorized Hacks 1 | . 1 . Terminals . | . . . Fabricators . | . . . Repair Stations . | . . . Recycling Units 1 | . 1 . Recyclers 1 | . 1 . Scanalyzers . | . . . Garrison Access . | . . . Data Cores Recovered . | . . . Used . | . . . Hacking Detections 4 | . 4 . Full Trace Events . | . . . Feedback Events . | . . . Feedback Blocked . | . . . Robot Schematics Acquired . | . . . Robots Built . | . . . Authchips . | . . . Time . | . . . Total Robot Build Rating . | . . . Part Schematics Acquired . | . . . Parts Built . | . . . Authchips . | . . . Time . | . . . Total Part Build Rating . | . . . Parts Repaired . | . . . Time . | . . . Parts Recycled . | . . . Recycled Matter . | . . . Retrieved Matter . | . . . Retrieved Components . | . . . Parts Scanalyzed . | . . . Part Schematics Acquired . | . . . Parts Damaged . | . . . Bothacking | -11 -10 -10 ------------ Run | Yrd Mat Min Used RIF Installer . | . . . Robots Hacked . | . . . Non-combat . | . . . Combat . | . . . Robot Hacks Applied . | . . . Relay Couplers Released . | . . . Fabnet Peak Effective % . | . . . Robots Rewired . | . . . Allies Hacked . | . . . Hacks Repelled . | . . . Allies | -11 -10 -10 -------- Run | Yrd Mat Min Total Allies . | . . . Largest Group . | . . . Highest-Rated Group . | . . . Highest-Rated Ally . | . . . Total Orders . | . . . Ally Attacks . | . . . Total Damage . | . . . Kills . | . . . Allies Corrupted . | . . . Allies Melted . | . . . Intel | -11 -10 -10 ------- Run | Yrd Mat Min Active Infowar (turns) 463 | 21 384 58 Terrain 463 | 21 384 58 Seismic 456 | 14 384 58 Robot Analysis Total . | . . . Derelict Logs Recovered . | . . . Drone Launches . | . . . Drone Recoveries . | . . . Exploration | -11 -10 -10 ------------- Run | Yrd Mat Min Turns Passed 618 | 176 384 58 Spaces Moved 458 | 86 328 44 Core 16 | 16 . . Treads . | . . . Legs . | . . . Wheels 442 | 70 328 44 Hover . | . . . Flight . | . . . Fastest Speed 50 | 50 100 100 Average Speed 98 | 91 100 100 Slowest Speed 100 | 100 100 100 Overloaded Moves . | . . . Propulsion Burnouts . | . . . Robots Hopped . | . . . Potential Cave-ins 4 | . . 4 Cave-ins Triggered . | . . . Exploration Rate (%) 22 | 4 53 9 Regions Visited 2 Branch Regions 1 Pre-discovered Areas . | . . . Known Exits Taken 1 | . 1 . Unknown Exits Taken 1 | 1 . . Scrap Searched 1 | . . 1 Spaces Dug 57 | . . 57 Terrain Destroyed 57 | . . 57 Melee . | . . . Projectile . | . . . AOE 57 | . . 57 Terrain Rammed . | . . . Walls Destroyed . | . . . Machines Disabled . | . . . Actions | -11 -10 -10 --------- Run | Yrd Mat Min Total 568 | 132 385 51 Wait 60 | 9 49 2 Move 456 | 85 327 44 Hop . | . . . Pick Up 9 | 4 5 . Fast Attach 7 | 7 . . Attach . | . . . Detach . | . . . Swap 3 | 1 . 2 Drop 4 | . 4 . Fire 29 | 26 . 3 Melee . | . . . Ram . | . . . Kick . | . . . Crush . | . . . Escape Stasis . | . . . Rewire . | . . . Trap . | . . . Miscellaneous . | . . . Route ------- -11/Scrapyard -10/Materials (discovered 4 exits: [*Mat x2] / *Min x2) -10/Mines History --------- Turn | Location | Event 5 | -11/Scrapyard | Discovered new exit (range 15) 177 | -11/Scrapyard | Entered Materials 317 | -10/Materials | Build established: Mutant 338 | -10/Materials | Discovered new exit (range 16) 485 | -10/Materials | Discovered new exit (range 15) 543 | -10/Materials | Identified exit to Mines 561 | -10/Materials | Entered Mines 562 | -10/Mines | Assembled infested the area 571 | -10/Mines | Met a Derelict bent on vengeance 611 | -10/Mines | Core integrity fell below 50% 618 | -10/Mines | Core integrity fell below 20% 619 | -10/Mines | Destroyed by D-53 Grenadier with Mini Grenade Launcher Last Messages --------------- 00611_ K-01 Serf collects debris. 00612_ U-05 Engineer lays Concrete. 00612_ Rocket Launcher destroyed. 00612_ K-01 Serf destroyed. 00613_ The unstable cave ceiling collapses. 00613_ U-05 Engineer lays Concrete. 00613_ Rocket Launcher destroyed. 00614_ U-05 Engineer lays Concrete. 00615_ The unstable cave ceiling collapses. 00615_ K-01 Serf collects debris. 00616_ The unstable cave ceiling collapses. 00616_ U-05 Engineer lays Concrete. 00616_ U-05 Engineer builds a Wall. 00617_ The unstable cave ceiling collapses. 00617_ U-05 Engineer lays Concrete. 00617_ Core Extractor disabled. 00619_ The unstable cave ceiling collapses. 00619_ U-05 Engineer lays Concrete. 00619_ K-01 Serf collects debris. 00619_ Imp. Terrain Scanner destroyed. Map ----- +----------------------------------------------------+ | ????????????????????????????????????????????? | | ????????????????????????????????????????????? | | ????????????????????????????????????????????? | | ????????????????????????????????????????????? | | ????????????????????????????????????????????? | | ????????????????????????????????????????????? | | ????????????????????????????????????????????? | | ????????????????????????????????????????????? | | ????????????????????????????????????????????? | | ????????????????????????????????????????????? | | ?????????????????????????#??????????????????? | | ????????????????????????????????????? ?????? | | ????????????????????????????????????? ?????? | | ???????????????????????????????????? ????? | | ???????????????????????????????????? # ?#???? | | ???????????????????????????????????# ????? | | ???????????????????????????????????# # #????? | | ???????????????????????#??????##### # ##???? | | ??????????????????#########???# # k #???? | | ????????????????? #???? ##???? | | ????????????#?????""" """ ###### u< ##??? | | ??????????????????""" """ # ## #????? | | ??????????????????""" "" # d # ##???? | | ????????????????????? ### ##??? | | ??????????????????????## # #??? | | ???????????????????????# @ = # #??? | | ???????????????????????## = %% ##??? | | ?????????????????????#??# ##??#? | | ????????????????????????# ##??? | | ????????????????????????## # ##?? | | ?????????????????????????###; d #?? | | ???????????????????????#???#" ;# ##? | | ???????????????????????????#" ;# ###?? | | ???????????????????????????#" # #??? | | ???????????????????????????## # # #??? | | ????????????????????????????###### ## ##??? | | ???????????????????????????????# ##???? | | ??????????????????????????#????# #???? | | ??????????????????????????#????# ##???? | | ???????????????????????????????## ###?#??? | | ??????????????????????? ????????######??????? | | ???????????????????????????????##?????#?????? | | ????????????????????????????????????????????? | | ??????????????????????????#?????????????????? | | ????????????????????????????????????????????? | | ???????????????????????????????#????????????? | | ????????????????????????????????????????????? | | ????????????????????????????????????????????? | | ?????????????????????????? ?????????????????? | | ????????????????????????????????????????????? | +----------------------------------------------------+ Best States ------------- Heat Dissipation 25 Energy Generation 10 Energy Capacity 125 Matter Stores 300 Matter Capacity 300 Sight Range 16 Terrain Scan Range 16 Terrain Scan Density 10 Evasion (%) 50 Item Schematics ----------------- None Robot Schematics ------------------ None Fabricated ------------ Nothing Repaired ---------- Nothing Alien Tech Used ----------------- None Achievements -------------- None Challenges ------------ None Game ------ Seed ImprinterHeatFlightbrick Manual? 0 Play Time 00:10:15 Cumulative 18.3 hours Start 2025.05.16 @ 23:39:46 End 2025.05.18 @ 15:13:06 Sessions 4 Manual Loads 0 Difficulty Rogue Special Mode None Game No. 41 Rogue 41 Adventurer 0 Explorer 0 Win Type - Total 0 Types 0/0/0/0/0/0/0/0/0/0 Lore% 28 Gallery% 18 Achievement% 19 Wizard Run 0 Options --------- Layout 1 ASCII 0 Keyboard 0 Movement Mouse Keybinds 0 Fullscreen 1 Font 32/SmallcapsGlow Map View 77x35 Zoom Use 0% Tactical HUD 1 Map Filters NONE Filters NONE Steam 1 RUN: f7668fbe-51cc-4660-b75b-84a36db0cea1